bitfinex-derivatives/quotes_SOLF0:USTF0_20250929
["timestamp","ask_amount","ask_price","bid_price","bid_amount"]
[1759164886679,3.31454244,209.39,209.33,2.04307518]
[1759164886976,118.82,209.42,209.35,2.04307518]
[1759164887181,3.31414505,209.41,209.36,7.37]
[1759164887382,3.31414505,209.4,209.35,2.04307518]
[1759164887579,8.04,209.42,209.36,7.37]
[1759164887883,3.31369044,209.41,209.35,9.41307518]
[1759164888079,8.04,209.39,209.35,9.41307518]
[1759164888286,8.04,209.43,209.35,7.37]
[1759164888479,3.31361252,209.42,209.34,4.2962]
[1759164888686,15.64871252,209.41,209.34,4.2962]
[1759164888886,3.31361252,209.4,209.34,4.2962]
[1759164889087,12.3351,209.41,209.34,4.2962]
[1759164889287,3.31348022,209.4,209.34,4.2962]
[1759164889480,12.3351,209.41,209.34,4.2962]
[1759164889681,3.31317648,209.4,209.34,4.2962]
[1759164889880,2.04307518,209.44,209.32,13.70977518]
[1759164889881,15.64831895,209.39,209.32,13.70977518]
[1759164890191,12.3354,209.39,209.32,13.70977518]
[1759164890778,7.60878954,209.38,209.32,11.6667]
[1759164891090,8.04,209.36,209.32,11.6667]
[1759164891484,4.2959,209.37,209.3,6.34017518]
[1759164891787,8.04,209.35,209.29,7.37]
[1759164892185,12.3368,209.32,209.26,4.298]
[1759164893682,108.3,209.39,209.23,7.37]
[1759164893882,8.04,209.35,209.26,2.04307518]
[1759164894079,3.31432453,209.34,209.26,10.10307518]
[1759164894282,3.31432453,209.33,209.26,10.10307518]
[1759164894588,8.04,209.35,209.26,10.10307518]
[1759164894589,3.31432453,209.32,209.26,10.10307518]
[1759164894789,10.95432453,209.31,209.26,10.10307518]
[1759164894991,7.64,209.31,209.27,4.2977]
[1759164895288,7.64,209.33,209.26,2.04307518]
[1759164895488,3.31401221,209.32,209.26,2.04307518]
[1759164895693,7.64,209.3,209.26,2.04307518]
[1759164896283,7.64,209.33,209.25,4.2982]
[1759164896585,3.3137788,209.32,209.25,4.2982]
[1759164896788,7.64,209.3,209.24,2.04307518]
[1759164897186,7.64,209.3,209.23,12.3586]
[1759164897187,7.64,209.3,209.23,14.40167518]
[1759164897990,7.64,209.3,209.24,4.2983]
[1759164898186,4.2967,209.33,209.25,2.04307518]
[1759164898393,3.31296076,209.32,209.26,8.06]
[1759164898588,3.31296076,209.31,209.28,8.06]
[1759164898783,13.97957518,209.34,209.28,8.06]
[1759164898984,7.64,209.32,209.28,8.06]
[1759164899180,10.95306298,209.31,209.28,8.06]
[1759164899389,7.64,209.31,209.28,8.06]
[1759164899685,7.64,209.31,209.27,4.2977]
[1759164899880,7.64,209.33,209.27,4.2977]
[1759164900085,7.64,209.31,209.27,4.2977]
[1759164900284,4.2967,209.33,209.27,4.2977]
[1759164900586,7.64,209.31,209.27,4.2977]
[1759164901292,11.937,209.32,209.25,14.40117518]
[1759164901487,7.64,209.3,209.25,12.3581]
[1759164901790,7.64,209.28,209.25,8.06]
[1759164903089,11.9371,209.31,209.25,8.06]
[1759164903392,3.31017066,209.3,209.24,8.06]
[1759164903588,3.31017066,209.29,209.24,8.06]
[1759164903894,7.64,209.37,209.28,8.06]
[1759164904088,3.31024215,209.36,209.28,10.10307518]
[1759164904392,3.31024215,209.35,209.28,10.10307518]
[1759164904592,3.31024215,209.34,209.29,4.2972]
[1759164904792,11.9359,209.37,209.3,8.06]
[1759164904991,3.31025606,209.36,209.3,8.06]
[1759164905193,3.31025606,209.35,209.32,8.06]
[1759164905392,4.2959,209.37,209.25,66.8608]
[1759164905588,15.24637417,209.36,209.28,2.04307518]
[1759164905790,5.35334935,209.35,209.26,12.3579]
[1759164905994,7.64,209.32,209.26,4.2979]
[1759164906295,7.64,209.3,209.26,4.2979]
[1759164908886,11.9371,209.31,209.24,12.3584]
[1759164909082,3.30709248,209.3,209.24,4.2984]
[1759164909284,10.94674912,209.3,209.24,4.2984]
[1759164909492,7.64,209.3,209.24,4.2984]
[1759164910096,3.3067617,209.29,209.21,2.04307518]
[1759164910288,3.30604173,209.29,209.21,2.04307518]
[1759164910594,10.94604173,209.28,209.2,8.06]
[1759164910797,3.30604173,209.27,209.2,8.06]
[1759164911097,7.64,209.26,209.16,8.06]
[1759164911285,3.30604173,209.25,209.16,10.10307518]
[1759164911794,3.30604173,209.25,209.2,2.04307518]
[1759164911989,3.30604173,209.29,209.22,2.04307518]
[1759164912185,3.30604173,209.28,209.22,2.04307518]
[1759164912389,7.60354173,209.29,209.22,6.34167518]
[1759164912596,3.30604173,209.28,209.22,6.34167518]
[1759164913392,3.30604173,209.29,209.24,2.04307518]
[1759164913592,7.64,209.3,209.24,10.10307518]
[1759164914591,7.64,209.3,209.25,4.2981]
[1759164914791,7.64,209.3,209.25,12.3581]
[1759164915195,11.937,209.31,209.25,8.06]
[1759164915395,7.86,209.29,209.25,8.06]
[1759164915791,7.86,209.29,209.23,4.2986]
[1759164915792,12.1573,209.3,209.23,4.2986]
[1759164916195,7.86,209.3,209.22,2.04307518]
[1759164916390,7.86,209.3,209.24,2.04307518]
[1759164916594,7.86,209.33,209.24,2.04307518]
[1759164916796,3.28668584,209.32,209.24,2.04307518]
[1759164917096,3.28668584,209.31,209.24,4.2983]
[1759164917299,3.28668584,209.32,209.24,4.2983]
[1759164917600,3.28668584,209.31,209.24,4.2983]
[1759164917798,3.28668584,209.32,209.24,4.2983]
[1759164917999,3.28668584,209.31,209.24,4.2983]
[1759164918200,3.28668584,209.32,209.24,4.2983]
[1759164918503,7.58388584,209.31,209.24,4.2983]
[1759164918698,3.28668584,209.3,209.24,4.2983]
[1759164918899,4.2972,209.31,209.24,4.2983]
[1759164919097,7.58388584,209.31,209.24,4.2983]
[1759164919296,3.28668584,209.3,209.24,4.2983]
[1759164919497,12.1574,209.3,209.24,4.2983]
[1759164920699,11.14670499,209.29,209.24,12.2183]
[1759164920901,7.86,209.29,209.24,12.2183]
[1759164921308,7.86,209.29,209.25,7.92]
[1759164922709,12.1574,209.3,209.24,4.2983]
[1759164922901,3.2870813,209.29,209.24,4.2983]
[1759164923204,7.86,209.29,209.24,12.2183]
[1759164923399,7.86,209.28,209.24,12.2183]
[1759164924501,7.86,209.28,209.25,7.98]
[1759164925609,7.86,209.28,209.24,4.2983]
[1759164925802,7.86,209.28,209.24,12.2783]
[1759164928304,12.4177,209.28,209.24,7.98]
[1759164928810,4.2977,209.28,209.24,7.98]
[1759164929010,8.12,209.27,209.24,7.98]
[1759164929906,8.12,209.29,209.18,10.02307518]
[1759164930111,8.12,209.25,209.18,7.98]
[1759164930307,5.32940158,209.24,209.18,7.98]
[1759164930514,3.2863264,209.23,209.18,7.98]
[1759164930711,2.04307518,209.24,209.14,14.32347518]
[1759164930712,8.12,209.22,209.14,14.32347518]
[1759164931707,4.2992,209.21,209.14,14.32347518]
[1759164932811,4.2994,209.2,209.14,7.98]
[1759164933305,8.12,209.21,209.14,7.98]
[1759164933510,3.28351744,209.2,209.14,7.98]
[1759164934308,131.1791,209.21,209.14,7.98]
[1759164935615,8.12,209.25,209.15,2.04307518]
[1759164935813,2.04307518,209.22,209.1,7.98]
[1759164936108,2.04307518,209.22,209.1,12.2813]
[1759164936109,8.12,209.21,209.1,12.2813]
[1759164936315,8.12,209.17,209.1,12.2813]
[1759164936913,3.2823061,209.16,209.1,12.2813]
[1759164937318,12.42,209.17,209.1,12.2813]
[1759164937513,14.46307518,209.17,209.1,12.2813]
[1759164938924,8.12,209.17,209.1,7.98]
[1759164939122,8.12,209.17,209.11,2.04307518]
[1759164939527,8.12,209.17,209.1,12.2813]
[1759164940620,4.3002,209.16,209.1,7.98]
[1759164940820,10.16307518,209.17,209.1,7.98]
[1759164941225,8.12,209.17,209.1,7.98]
[1759164941923,8.12,209.17,209.11,2.04307518]
[1759164942120,8.12,209.21,209.15,4.3003]
[1759164942317,8.12,209.25,209.17,2.04307518]
[1759164942514,3.27577509,209.24,209.17,2.04307518]
[1759164942722,3.27577509,209.24,209.17,4.2997]
[1759164944627,122.05577509,209.24,209.17,4.2997]
[1759164944828,12.4184,209.25,209.17,4.2997]
[1759164945130,122.06056044,209.24,209.17,4.2997]
[1759164945422,118.78,209.24,209.17,4.2997]
[1759164945623,118.76,209.24,209.17,4.2997]
[1759164946324,12.4184,209.25,209.17,4.2997]
[1759164946528,122.04074201,209.24,209.17,4.2997]
[1759164946828,118.76,209.24,209.17,4.2997]
[1759164947730,118.76,209.23,209.17,4.2997]
[1759164948823,126.88,209.23,209.17,4.2997]
[1759164949924,131.1788,209.23,209.15,4.3002]
[1759164950120,3.28163365,209.22,209.15,4.3002]
[1759164950321,8.12,209.21,209.15,4.3002]
[1759164952028,8.12,209.21,209.13,4.3006]
[1759164952531,8.12,209.21,209.14,4.3004]
[1759164952829,8.12,209.21,209.11,66.9047]
[1759164953027,8.12,209.21,209.13,3.19747653]
[1759164953328,8.12,209.21,209.14,7.98]
[1759164953329,126.88,209.21,209.14,7.98]
[1759164954032,8.12,209.21,209.14,7.98]
[1759164954332,126.88,209.21,209.14,7.98]
[1759164954528,126.88,209.21,209.14,4.3004]
[1759164954730,8.11,209.2,209.11,10.56747653]
[1759164955735,118.76,209.21,209.15,4.3002]
[1759164955930,126.87,209.21,209.15,4.3002]
[1759164956329,131.1692,209.21,209.15,4.3002]
[1759164958039,126.87,209.21,209.16,4.2999]
[1759164958333,118.74,209.22,209.15,7.37]
[1759164959238,8.11,209.21,209.15,4.3002]
[1759164959640,8.11,209.21,209.11,10.56747653]
[1759164959641,118.74,209.22,209.11,10.56747653]
[1759164960141,118.74,209.21,209.11,10.56747653]
[1759164960437,8.11,209.2,209.11,10.56747653]
[1759164960640,8.11,209.2,209.11,7.37]
[1759164960938,4.2996,209.19,209.12,4.3008]
[1759164961239,8.11,209.18,209.11,7.37]
[1759164962533,12.4098,209.18,209.11,7.37]
[1759164963539,12.4098,209.18,209.12,4.3008]
[1759164964040,118.74,209.17,209.12,4.3008]
[1759164964335,8.11,209.16,209.12,4.3008]
[1759164964537,118.74,209.17,209.12,4.3008]
[1759164964731,8.11,209.16,209.12,11.6708]
[1759164965938,8.11,209.17,209.13,4.3006]
[1759164966138,118.74,209.18,209.13,4.3006]
[1759164966334,8.11,209.17,209.13,4.3006]
[1759164966539,118.74,209.18,209.14,4.3004]
[1759164966937,126.85,209.18,209.12,7.37]
[1759164967441,8.11,209.22,209.12,7.37]
[1759164967637,122.03124853,209.21,209.12,7.37]
[1759164967835,3.29124853,209.2,209.12,7.37]
[1759164968035,8.11,209.19,209.12,7.37]
[1759164968436,3.29190938,209.18,209.12,7.37]
[1759164969543,3.29190938,209.18,209.13,4.3006]
[1759164969944,8.11,209.17,209.13,4.3006]
[1759164970244,8.11,209.19,209.13,4.3006]
[1759164970438,3.29399902,209.18,209.14,7.37]
[1759164970634,8.11,209.18,209.14,7.37]
[1759164971041,8.11,209.18,209.13,4.3006]
[1759164971042,8.11,209.16,209.13,4.3006]
[1759164972247,8.11,209.18,209.11,4.301]
[1759164972541,3.29571943,209.17,209.1,7.37]
[1759164972734,3.29571943,209.16,209.1,7.37]
[1759164972940,4.3003,209.16,209.1,7.37]
[1759164973139,8.11,209.15,209.07,7.37]
[1759164973943,3.29730324,209.14,209.07,7.37]
[1759164974143,3.29717596,209.14,209.07,7.37]
[1759164974343,3.29904573,209.13,209.08,4.3017]
[1759164974546,3.2989375,209.12,209.08,4.3017]
[1759164974851,7.95,209.14,209.08,4.3017]
[1759164975041,3.29741865,209.13,209.07,7.44]
[1759164975236,77.47,209.17,209.07,7.44]
[1759164975441,3.29749907,209.16,209.07,7.44]
[1759164975643,3.29749907,209.15,209.09,3.19747653]
[1759164975851,3.29749907,209.14,209.09,3.19747653]
[1759164976044,3.29749907,209.13,209.09,3.19747653]
[1759164976243,7.95,209.17,209.1,7.44]
[1759164976546,3.29723488,209.16,209.12,4.3008]
[1759164976749,3.29723488,209.15,209.13,7.44]
[1759164976950,3.29723488,209.14,209.12,4.3008]
[1759164977143,3.29723488,209.13,209.12,4.3008]
[1759164977543,3.29723488,209.13,209.1,11.7412]
[1759164977747,7.95,209.17,209.1,11.7412]
[1759164977949,3.29728304,209.16,209.1,11.7412]
[1759164978145,3.29728304,209.15,209.1,4.3012]
[1759164978345,7.95,209.13,209.1,4.3012]
[1759164978541,7.95,209.16,209.1,4.3012]
[1759164978745,7.95,209.14,209.1,4.3012]
[1759164978949,11.24719256,209.13,209.1,4.3012]
[1759164979150,7.95,209.13,209.1,4.3012]
[1759164979951,3.29689617,209.12,209.08,4.3016]
[1759164980146,7.95,209.11,209.08,4.3016]
[1759164980349,7.95,209.15,209.08,11.7416]
[1759164980549,3.29654197,209.14,209.08,11.7416]
[1759164980752,11.24654197,209.13,209.08,11.7416]
[1759164980953,7.95,209.13,209.08,11.7416]
[1759164981542,7.95,209.14,209.08,4.3016]
[1759164981751,7.95,209.12,209.08,11.7416]
[1759164982347,7.95,209.14,209.08,11.7416]
[1759164982548,7.95,209.12,209.08,11.7416]
[1759164984349,7.95,209.12,209.09,4.3014]
[1759164984555,7.83,209.16,209.09,7.98]
[1759164984852,3.29501271,209.15,209.09,7.98]
[1759164985047,3.29501271,209.14,209.08,3.19747653]
[1759164985248,7.83,209.16,209.09,7.98]
[1759164985550,3.29494407,209.15,209.11,4.3011]
[1759164985747,7.83,209.13,209.06,7.98]
[1759164986053,7.83,209.16,209.06,7.98]
[1759164986354,3.29466703,209.15,209.06,7.98]
[1759164986550,3.29466703,209.14,209.06,7.98]
[1759164986854,3.29465378,209.13,209.06,7.98]
[1759164987051,7.83,209.16,209.06,7.98]
[1759164987253,3.29449672,209.15,209.06,7.98]
[1759164987454,3.29449672,209.14,209.06,7.98]
[1759164987654,3.29449672,209.13,209.06,7.98]
[1759164987854,12.1302,209.16,209.06,7.98]
[1759164988056,3.29435294,209.15,209.06,7.98]
[1759164988253,3.29435294,209.14,209.06,7.98]
[1759164988453,3.29435294,209.13,209.06,7.98]
[1759164988655,7.83,209.16,209.06,7.98]
[1759164988856,3.29446959,209.15,209.06,7.98]
[1759164989053,3.29446959,209.14,209.06,7.98]
[1759164989249,3.29446959,209.13,209.1,4.3012]
[1759164989457,130.81,209.17,209.11,7.98]
[1759164989650,7.83,209.15,209.1,4.3012]
[1759164989854,7.83,209.13,209.1,4.3012]
[1759164991461,7.83,209.17,209.11,12.2809]
[1759164991657,7.83,209.15,209.11,12.2809]
[1759164991855,3.2947429,209.14,209.11,12.2809]
[1759164992055,7.83,209.15,209.11,12.2809]
[1759164992056,3.2947429,209.13,209.11,12.2809]
[1759164992257,11.1247429,209.14,209.11,12.2809]
[1759164992558,7.83,209.14,209.11,12.2809]
[1759164992856,3.294991,209.13,209.11,12.2809]
[1759164993257,7.83,209.16,209.11,4.3009]
[1759164993457,7.83,209.14,209.11,4.3009]
[1759164993659,3.2952707,209.13,209.11,4.3009]
[1759164993855,7.83,209.15,209.11,4.3009]
[1759164994052,11.12438243,209.14,209.11,4.3009]
[1759164994252,3.29438243,209.13,209.11,4.3009]
[1759164994453,7.83,209.14,209.11,4.3009]
[1759164994653,3.2939669,209.13,209.11,4.3009]
[1759164994955,7.83,209.15,209.09,4.3014]
[1759164995258,7.83,209.13,209.07,12.2818]
[1759164995757,7.83,209.13,209.07,7.98]
[1759164996159,3.29304538,209.12,209.03,81.12288381]
[1759164996359,7.83,209.13,209.05,7.98]
[1759164996557,7.83,209.13,209.08,4.3016]
[1759164996757,12.1306,209.14,209.08,4.3016]
[1759164996955,3.29321885,209.13,209.09,7.98]
[1759164997160,3.29321885,209.12,209.09,7.98]
[1759164997360,7.83,209.13,209.09,7.98]
[1759164997662,3.29377557,209.12,209.09,7.98]
[1759164997861,7.83,209.13,209.09,7.98]
[1759164998061,3.29338306,209.12,209.09,7.98]
[1759164998263,7.83,209.13,209.09,7.98]
[1759164998457,3.29317734,209.12,209.09,7.98]
[1759164998663,7.83,209.13,209.09,7.98]
[1759164998970,3.29317604,209.12,209.1,7.98]
[1759164999265,4.3002,209.16,209.09,12.2814]
[1759164999464,3.29360065,209.15,209.09,12.2814]
[1759164999659,11.12360065,209.14,209.1,7.98]
[1759164999861,3.29360065,209.13,209.1,7.98]
[1759165000164,3.29360065,209.12,209.1,7.98]
[1759165000354,7.83,209.14,209.1,7.98]
[1759165000554,3.29384748,209.13,209.1,12.2812]
[1759165000754,3.29384748,209.12,209.11,7.98]
[1759165000954,3.29384748,209.12,209.1,4.3012]
[1759165001164,7.83,209.14,209.1,12.2812]
[1759165001365,3.29424843,209.13,209.1,12.2812]
[1759165001568,3.29424843,209.12,209.1,12.2812]
[1759165001754,7.83,209.14,209.1,12.2812]
[1759165001954,11.12442784,209.13,209.1,12.2812]
[1759165002159,11.12442784,209.12,209.1,4.3012]
[1759165002359,7.83,209.12,209.1,4.3012]
[1759165002555,7.83,209.14,209.1,4.3012]
[1759165002761,11.12474922,209.13,209.1,12.2812]
[1759165002962,3.29474922,209.12,209.1,12.2812]
[1759165003166,7.83,209.13,209.1,7.98]
[1759165003368,3.2947571,209.12,209.1,7.98]
[1759165003566,7.83,209.13,209.1,7.98]
[1759165003865,3.2947571,209.12,209.1,7.98]
[1759165004166,7.83,209.13,209.1,7.98]
[1759165004363,11.12644008,209.12,209.04,7.98]
[1759165004560,7.83,209.1,209.04,7.98]
[1759165004863,3.29644008,209.09,209.06,12.282]
[1759165005165,7.83,209.13,209.06,12.282]
[1759165005466,3.29518664,209.12,209.07,4.3018]
[1759165005666,3.29518664,209.11,209.08,7.98]
[1759165005862,3.29518664,209.1,209.08,7.98]
[1759165006064,3.29518664,209.09,209.08,7.98]
[1759165007369,3.29518664,209.09,209.07,4.3018]
[1759165007570,7.83,209.14,209.07,4.3018]
[1759165007864,7.83,209.12,209.07,4.3018]
[1759165008063,3.29580552,209.11,209.05,12.2822]
[1759165008265,11.12580552,209.1,209.03,7.98]
[1759165008464,3.29580552,209.09,209.03,12.2826]
[1759165008668,3.29587858,209.08,209.04,7.98]
[1759165008867,12.1314,209.1,209.04,7.98]
[1759165009063,3.29586557,209.09,209.05,7.98]
[1759165009268,7.83,209.13,209.05,7.98]
[1759165009465,3.29577483,209.12,209.05,7.98]
[1759165009665,3.29577483,209.11,209.07,7.98]
[1759165009865,3.29577483,209.1,209.06,2.04901253]
[1759165010070,7.83,209.13,209.07,7.98]
[1759165010274,3.29580973,209.12,209.03,7.98]
[1759165010470,3.29580973,209.11,209.05,2.04901253]
[1759165010768,3.29580973,209.1,209.06,7.98]
[1759165010969,4.3011,209.11,209.06,4.3021]
[1759165011174,7.83,209.09,209.05,7.98]
[1759165011670,4.3011,209.11,209.05,7.98]
[1759165011870,3.29536611,209.1,209.05,7.98]
[1759165012068,7.83,209.08,209.04,4.3024]
[1759165012274,7.83,209.08,209.01,10.02901253]
[1759165012275,3.29536611,209.07,209.01,10.02901253]
[1759165012473,7.83,209.08,209.01,10.02901253]
[1759165012670,3.29505132,209.07,209.01,10.02901253]
[1759165012875,7.83,209.08,209.01,10.02901253]
[1759165013176,3.2951681,209.07,209.02,12.2829]
[1759165013372,7.83,209.06,209.02,12.2829]
[1759165015273,7.83,209.06,209.03,7.59]
[1759165015476,11.6818,209.08,209.03,7.59]
[1759165015779,3.29415618,209.07,209.03,4.3026]
[1759165015975,3.29415618,209.06,209.03,7.59]
[1759165016279,7.59547098,209.11,209.05,4.3023]
[1759165016583,7.38,209.09,209.05,11.8923]
[1759165016780,3.29427098,209.08,209.05,11.8923]
[1759165016980,7.38,209.09,209.05,7.59]
[1759165017278,10.67413911,209.08,209.05,7.59]
[1759165017478,3.29428895,209.07,209.01,7.59]
[1759165017669,10.67428895,209.06,209.02,7.59]
[1759165017871,7.38,209.06,209.02,7.59]
[1759165019174,7.38,209.06,209.02,11.8928]
[1759165019875,3.29276908,209.05,208.95,7.59]
[1759165020182,12.72178161,209.04,208.95,7.59]
[1759165020374,7.59546908,209.03,208.95,7.59]
[1759165020576,3.29276908,209.02,208.95,7.59]
[1759165020776,3.29276908,209.01,208.95,9.63901253]
[1759165020973,4.3027,209.03,208.95,9.63901253]
[1759165021176,10.67170738,209.02,208.95,7.59]
[1759165021379,7.59212582,209.01,208.91,7.59]
[1759165021582,7.38,209.0,208.94,7.59]
[1759165021778,7.38,209.04,208.96,7.59]
[1759165021979,3.28812109,209.03,208.99,2.04901253]
[1759165022285,3.28812109,209.06,209.0,7.59]
[1759165022482,3.28812109,209.05,208.99,9.63901253]
[1759165022674,3.28812109,209.04,209.0,7.59]
[1759165022873,114.78,209.07,208.99,2.04901253]
[1759165022874,3.28812109,209.03,208.99,2.04901253]
[1759165023085,3.28812109,209.06,209.0,7.59]
[1759165023379,3.28812109,209.05,208.98,7.59]
[1759165023579,3.28812109,209.04,209.0,7.59]
[1759165023774,3.28812109,209.06,209.0,7.59]
[1759165024076,3.28812109,209.07,208.99,2.04901253]
[1759165024275,3.28812109,209.06,209.01,2.04901253]
[1759165024475,3.28812109,209.07,209.01,9.63901253]
[1759165024678,3.28812109,209.06,209.02,7.59]
[1759165024977,3.28812109,209.07,209.01,9.63901253]
[1759165025179,3.28812109,209.07,208.94,66.9603]
[1759165025180,7.38,209.06,208.97,11.8938]
[1759165025378,3.28592754,209.05,208.99,2.04901253]
[1759165025783,3.28592754,209.05,208.99,9.63901253]
[1759165025987,3.28592754,209.05,208.99,7.59]
[1759165026687,7.38,209.04,208.95,6.35321253]
[1759165026889,3.28592754,209.03,208.95,6.35321253]
[1759165027185,3.28592754,209.03,208.95,2.04901253]
[1759165027186,7.38,209.02,208.95,2.04901253]
[1759165027587,7.38,209.02,208.94,7.59]
[1759165027889,7.38,209.02,208.94,9.63901253]
[1759165028483,4.3032,209.01,208.94,9.63901253]
[1759165028890,4.3032,209.01,208.94,7.59]
[1759165029094,4.3035,209.0,208.94,7.59]
[1759165030397,7.38,209.0,208.94,7.59]
[1759165031197,4.3039,208.98,208.94,7.59]
[1759165031392,2.04901253,209.01,208.91,11.895]
[1759165031593,7.38,208.98,208.91,7.59]
[1759165032091,7.38,208.98,208.91,11.8951]
[1759165032597,66.9265,209.05,208.96,2.04901253]
[1759165032598,7.38,209.04,208.96,2.04901253]
[1759165033087,4.3028,209.03,208.96,6.35301253]
[1759165033292,4.3028,209.03,208.97,7.59]
[1759165033492,7.38,209.04,208.98,2.04901253]
[1759165033691,7.38,209.04,208.97,11.8938]
[1759165033896,7.38,209.04,209.0,7.59]
[1759165034197,7.38,209.03,208.97,4.3038]
[1759165034399,7.38,209.03,208.96,8.14]
[1759165034596,11.7433,209.01,208.96,8.14]
[1759165034898,11.7433,209.01,208.95,10.18901253]
[1759165035093,4.3035,209.0,208.95,8.14]
[1759165035303,7.44,209.01,208.92,6.35401253]
[1759165035493,7.44,209.01,208.9,8.14]
[1759165035799,7.44,209.01,208.91,2.04901253]
[1759165036000,9.48901253,209.01,208.91,2.04901253]
[1759165036396,9.48901253,209.01,208.9,12.4454]
[1759165036603,7.44,209.0,208.9,14.49441253]
[1759165036798,118.58,208.99,208.9,14.49441253]
[1759165036999,118.58,208.99,208.9,12.4454]
[1759165037198,4.3043,208.96,208.9,14.49441253]
[1759165037796,4.3043,208.96,208.9,10.18901253]
[1759165039904,4.3043,208.96,208.9,8.14]
[1759165040204,4.3043,208.96,208.9,10.18901253]
[1759165041198,4.3043,208.96,208.9,14.49431253]
[1759165041394,4.3038,208.98,208.91,8.14]
[1759165041607,7.44,209.01,208.93,8.14]
[1759165042097,4.3037,208.99,208.93,8.14]
[1759165042598,126.02,209.01,208.94,2.04901253]
[1759165042794,7.44,209.01,208.95,8.14]
[1759165043298,11.7433,209.01,208.95,10.18901253]
[1759165044606,11.7433,209.01,208.95,8.14]
[1759165044994,4.3035,209.0,208.95,8.14]
[1759165045204,11.7635,209.0,208.95,8.14]
[1759165045402,74.3971,209.02,208.92,2.04901253]
[1759165045601,4.3043,208.96,208.92,2.04901253]
[1759165045801,11.7643,208.96,208.9,10.18901253]
[1759165046205,4.3038,208.98,208.92,2.04901253]
[1759165046907,4.3038,208.98,208.92,14.49391253]
[1759165047102,4.3038,208.98,208.93,2.04901253]
[1759165047302,4.3038,208.98,208.91,10.18901253]
[1759165047303,11.7638,208.98,208.91,10.18901253]
[1759165048205,4.3041,208.97,208.91,14.49401253]
[1759165048699,2.04901253,208.99,208.89,4.3056]
[1759165048904,7.46,208.98,208.89,2.04901253]
[1759165049402,7.46,208.95,208.87,8.14]
[1759165049611,9.50901253,208.95,208.87,8.14]
[1759165049809,7.46,208.95,208.87,8.14]
[1759165050003,7.46,208.95,208.87,10.18901253]
[1759165050405,4.3046,208.94,208.87,14.49491253]
[1759165051811,7.46,208.95,208.87,10.18901253]
[1759165052110,9.50901253,208.95,208.85,4.3064]
[1759165052304,7.46,208.94,208.85,14.49541253]
[1759165052499,11.7648,208.94,208.86,4.3061]
[1759165052711,11.7648,208.94,208.85,10.18901253]
[1759165052912,11.7648,208.94,208.87,2.04901253]
[1759165053111,3.29106527,208.93,208.87,2.04901253]
[1759165053301,11.7648,208.94,208.87,2.04901253]
[1759165053504,7.46,208.97,208.88,8.14]
[1759165053706,3.2901512,208.96,208.89,2.04901253]
[1759165054003,3.2901512,208.96,208.88,8.14]
[1759165054203,2.04901253,208.95,208.88,8.14]
[1759165054406,3.2901512,208.96,208.88,8.14]
[1759165055419,7.46,208.95,208.88,8.14]
[1759165055915,4.3049,208.93,208.88,8.14]
[1759165056207,4.3049,208.93,208.85,4.3064]
[1759165056208,7.46,208.93,208.85,4.3064]
[1759165056513,7.46,208.93,208.85,12.4464]
[1759165056704,2.04901253,208.91,208.82,12.447]
[1759165056910,40.67015606,208.91,208.82,8.14]
[1759165057209,39.42901253,208.91,208.82,8.14]
[1759165057610,4.3056,208.9,208.83,4.3068]